bitfinex/quotes_SOLUSD_20241118
["timestamp","ask_amount","ask_price","bid_price","bid_amount"]
[1731899609221,6.47513578,238.25,238.18,10.4962]
[1731899610018,45.2729,238.18,238.1,4.1999]
[1731899610224,10.15916627,238.14,238.1,4.1999]
[1731899610424,10.15916627,238.14,238.1,14.6996]
[1731899610631,10.15916627,238.16,238.1,14.6996]
[1731899611226,10.15916627,238.14,238.1,10.4997]
[1731899611855,10.15916627,238.12,238.1,10.4997]
[1731899612519,10.15916627,238.14,238.1,10.4997]
[1731899613550,49.4715,238.18,238.1,10.4997]
[1731899613551,49.4715,238.18,238.1,20.65886627]
[1731899613754,4.1986,238.18,238.12,10.15916627]
[1731899613952,4.1986,238.18,238.1,10.4997]
[1731899613953,10.15916627,238.16,238.1,10.4997]
[1731899614456,4.1986,238.18,238.1,20.65886627]
[1731899614645,14.35776627,238.18,238.1,24.85876627]
[1731899616852,10.15916627,238.16,238.07,21.0022]
[1731899617251,10.15916627,238.14,238.07,21.0022]
[1731899618055,10.15916627,238.14,238.07,35.7037]
[1731899619026,10.15916627,238.16,238.08,10.15916627]
[1731899619226,160.2,238.17,238.08,10.15916627]
[1731899619949,160.2,238.17,238.1,10.15916627]
[1731899621743,10.15916627,238.16,238.08,10.15916627]
[1731899622053,10.15916627,238.16,238.11,10.4993]
[1731899622256,160.2,238.17,238.11,10.4993]
[1731899622734,14.35776627,238.18,238.11,10.4993]
[1731899623053,14.35776627,238.18,238.11,14.699]
[1731899624555,14.35776627,238.18,238.08,10.15916627]
[1731899624756,10.15916627,238.16,238.08,10.15916627]
[1731899625133,14.35776627,238.18,238.1,10.15916627]
[1731899625432,4.1986,238.18,238.12,10.15916627]
[1731899626329,4.1986,238.18,238.13,14.6977]
[1731899627440,170.6947,238.22,238.17,10.15916627]
[1731899627763,10.4947,238.22,238.17,10.15916627]
[1731899628341,20.65386627,238.22,238.08,21.0006]
[1731899628641,10.15916627,238.2,238.13,10.15916627]
[1731899630262,10.15916627,238.2,238.14,14.6972]
[1731899635075,10.15916627,238.16,238.14,10.498]
[1731899636574,32.917,238.14,237.94,30.7873]
[1731899636875,170.35916627,238.13,238.05,10.15916627]
[1731899637069,160.2,238.12,238.05,10.15916627]
[1731899638250,10.15916627,238.11,238.03,10.15916627]
[1731899638655,10.15916627,238.08,237.98,0.4671542]
[1731899638869,10.15916627,238.04,237.98,10.62632047]
[1731899639056,10.15916627,238.04,237.98,0.4671542]
[1731899640162,10.15916627,237.99,237.83,6.79422052]
[1731899640472,210.012,238.03,237.83,6.79422052]
[1731899640473,49.812,238.03,237.93,10.15916627]
[1731899640674,4.2011,238.03,237.97,10.15916627]
[1731899641263,4.2011,238.03,237.99,10.15916627]
[1731899641658,4.2011,238.03,238.0,14.7058]
[1731899643676,4.2011,238.03,237.99,10.15916627]
[1731899643677,4.2011,238.03,237.95,10.15916627]
[1731899643980,10.15916627,238.02,237.93,31.17296627]
[1731899644996,10.15916627,238.02,237.93,45.88306627]
[1731899648468,10.15916627,238.02,237.95,10.15916627]
[1731899648658,4.2011,238.03,237.95,10.15916627]
[1731899648984,4.2011,238.03,237.97,10.15916627]
[1731899649360,4.2011,238.03,237.95,10.15916627]
[1731899649566,4.2011,238.03,237.93,31.521]
[1731899649567,4.2011,238.03,237.97,10.15916627]
[1731899650561,4.2011,238.03,237.98,14.707]
[1731899650974,4.2011,238.03,237.99,10.15916627]
[1731899652375,4.2011,238.03,238.01,10.15916627]
[1731899653588,4.2011,238.03,238.02,4.2013]
[1731899654361,10.5011,238.07,238.02,14.7046]
[1731899654565,10.5011,238.07,238.06,10.15916627]
[1731899654857,10.5011,238.07,238.02,14.7046]
[1731899655062,10.5011,238.07,238.05,10.15916627]
[1731899655588,10.5011,238.07,238.06,4.2006]
[1731899655963,10.5011,238.07,238.04,4.2009]
[1731899656165,20.66026627,238.07,238.04,4.2009]
[1731899656481,10.15916627,238.05,238.02,14.7046]
[1731899657073,10.15916627,238.05,237.98,4.202]
[1731899657274,10.15916627,238.03,237.98,4.202]
[1731899657483,10.15916627,238.03,237.98,10.505]
[1731899659084,10.15916627,238.05,237.98,10.505]
[1731899659381,10.5011,238.07,238.03,10.15916627]
[1731899660486,10.5011,238.07,238.04,4.2009]
[1731899661068,10.5011,238.07,238.04,14.7033]
[1731899661687,10.5011,238.07,238.05,10.15916627]
[1731899662603,10.5011,238.07,238.06,4.2006]
[1731899663985,20.66026627,238.07,237.99,10.5042]
[1731899664288,16.26723642,238.05,237.99,10.5042]
[1731899666597,16.26723642,238.0,237.91,16.26723642]
[1731899667280,176.46723642,238.02,237.93,16.26723642]
[1731899667516,176.46723642,238.02,237.91,16.26723642]
[1731899667679,16.26723642,237.99,237.91,16.26723642]
[1731899668174,16.26723642,237.97,237.92,14.7107]
[1731899668374,40.04412042,237.97,237.92,14.7107]
[1731899668574,16.26723642,237.97,237.92,14.7107]
[1731899669294,16.26723642,237.97,237.92,10.5077]
[1731899671586,176.46723642,237.97,237.89,16.26723642]
[1731899672098,16.26723642,237.99,237.91,16.26723642]
[1731899672286,160.2,238.0,237.91,16.26723642]
[1731899672601,160.2,238.0,237.89,16.26723642]
[1731899672602,16.26723642,237.97,237.89,16.26723642]
[1731899673909,16.26723642,237.97,237.9,14.712]
[1731899675808,16.26723642,237.97,237.87,16.26723642]
[1731899676301,16.26723642,237.95,237.85,16.26723642]
[1731899677206,16.26723642,237.93,237.85,16.26723642]
[1731899677585,47.71413642,237.93,237.83,52.00653642]
[1731899678177,47.71413642,237.93,237.83,30.98353642]
[1731899678178,12.0138,237.91,237.83,30.98353642]
[1731899678380,28.28103642,237.91,237.83,14.7163]
[1731899678620,28.28103642,237.91,237.83,30.98353642]
[1731899679881,12.0138,237.91,237.85,16.26723642]
[1731899681203,12.0138,237.91,237.86,14.7144]
[1731899682605,12.0138,237.91,237.83,16.26723642]
[1731899683305,28.28103642,237.91,237.83,16.26723642]
[1731899683608,28.28103642,237.91,237.84,14.7157]
[1731899684315,10.180325,237.9,237.84,14.7157]
[1731899686592,12.0138,237.91,237.84,14.7157]
[1731899686808,12.0138,237.91,237.84,10.180325]
[1731899687417,12.0138,237.91,237.82,10.180325]
[1731899687588,10.180325,237.9,237.8,10.180325]
[1731899687916,10.180325,237.88,237.8,10.180325]
[1731899689189,10.180325,237.88,237.81,14.7175]
[1731899690889,160.2,237.89,237.82,10.180325]
[1731899691086,160.2,237.89,237.85,4.2043]
[1731899691709,4.2034,237.9,237.85,4.2043]
[1731899692910,4.2034,237.9,237.85,14.7151]
[1731899696420,4.2034,237.9,237.79,0.12549]
[1731899696712,4.2034,237.9,237.83,10.180325]
[1731899697319,10.180325,237.89,237.76,14.7207]
[1731899697610,10.180325,237.89,237.8,10.180325]
[1731899697990,10.180325,237.89,237.82,10.180325]
[1731899698498,10.180325,237.89,237.82,14.384925]
[1731899700018,14.383925,237.89,237.8,10.180325]
[1731899700313,14.383925,237.89,237.78,10.180325]
[1731899700314,10.180325,237.87,237.78,10.180325]
[1731899700622,46.2065,237.85,237.75,3.3509542]
[1731899700802,46.2065,237.85,237.53,16.04806031]
[1731899700803,46.2065,237.85,237.71,0.0613432]
[1731899700804,20.1,237.73,237.71,0.0613432]
[1731899701004,110.56319862,237.72,237.71,0.0613432]
[1731899701214,100.289199,237.72,237.71,0.0613432]
[1731899701421,80.163709,237.72,237.71,0.0613432]
[1731899701610,56.386825,237.72,237.71,0.0613432]
[1731899702723,33.0711,237.72,237.71,0.0613432]
[1731899703221,4.2062,237.74,237.71,0.0613432]
[1731899703718,14.386525,237.74,237.71,0.0613432]
[1731899704208,14.386525,237.74,237.24,12.80806031]
[1731899704209,0.1,237.42,237.24,12.80806031]
[1731899704414,23.776884,237.38,237.28,10.180325]
[1731899704726,6.44840242,237.32,237.29,10.180325]
[1731899704923,6.53281187,237.3,237.21,10.03142722]
[1731899705096,6.53281187,237.29,237.16,0.1]
[1731899705297,6.53281187,237.27,237.24,10.180325]
[1731899705513,13.01968305,237.25,237.24,10.180325]
[1731899705819,23.776884,237.38,237.24,10.180325]
[1731899706008,23.776884,237.39,237.29,10.180325]
[1731899706205,23.776884,237.39,237.29,4.214]
[1731899706415,22.87439268,237.37,237.29,4.214]
[1731899706617,16.36023546,237.35,237.23,10.5382]
[1731899706806,16.36023546,237.35,237.23,26.89843546]
[1731899707214,16.36023546,237.33,237.23,10.5382]
[1731899707416,16.36023546,237.29,237.19,16.36023546]
[1731899707602,16.36023546,237.31,237.21,16.36023546]
[1731899707802,16.36023546,237.33,237.23,16.36023546]
[1731899708010,0.1,237.39,237.19,4.216]
[1731899708011,20.57283546,237.38,237.29,16.36023546]
[1731899708209,20.57283546,237.38,237.29,20.57433546]
[1731899708917,20.57283546,237.38,237.29,4.2141]
[1731899709132,23.902374,237.35,237.26,10.5365]
[1731899709309,16.36023546,237.34,237.26,10.5365]
[1731899710534,4.2126,237.38,237.3,16.36023546]
[1731899710708,4.2126,237.38,237.33,16.36023546]
[1731899711906,4.2126,237.38,237.35,16.36023546]
[1731899712220,4.2126,237.38,237.37,16.36023546]
[1731899713109,10.5266,237.5,237.37,16.36023546]
[1731899713318,10.5266,237.5,237.44,16.36023546]
[1731899713520,10.5266,237.5,237.36,16.36023546]
[1731899713521,10.5266,237.5,237.48,16.36023546]
[1731899714614,10.5266,237.5,237.35,0.1]
[1731899714615,10.5266,237.5,237.35,10.5328]
[1731899714807,10.5266,237.5,237.41,16.36023546]
[1731899715226,0.25098,237.45,237.37,16.36023546]
[1731899715408,0.12549,237.43,237.37,16.36023546]
[1731899715604,23.902374,237.39,237.31,16.36023546]
[1731899717618,23.902374,237.39,237.33,16.36023546]
[1731899718023,23.902374,237.4,237.33,16.36023546]
[1731899720344,4.2122,237.41,237.35,16.36023546]
[1731899722114,40.26260946,237.4,237.33,16.36023546]
[1731899723329,44.34951946,237.4,237.33,16.36023546]
[1731899724815,27.989284,237.4,237.33,16.36023546]
[1731899725334,44.34951946,237.4,237.31,16.36023546]
[1731899725814,27.989284,237.4,237.34,16.36023546]
[1731899726014,27.989284,237.4,237.3,10.5351]
[1731899726238,27.989284,237.4,237.34,16.36023546]
[1731899727587,27.989284,237.4,237.3,10.5351]
[1731899727588,27.989284,237.4,237.36,16.36023546]
[1731899727840,4.2124,237.4,237.38,16.36023546]
[1731899729131,13.2458,237.49,237.39,4.2124]
[1731899729354,21.052,237.51,237.48,16.36023546]
[1731899729638,25.2623,237.51,237.48,16.36023546]
[1731899730819,25.2623,237.51,237.29,14.7498]
[1731899730820,0.09367462,237.47,237.29,14.7498]
[1731899731013,20.09367462,237.47,237.4,16.36023546]
[1731899731214,0.12549,237.49,237.42,16.36023546]
[1731899731719,20.7889,237.51,237.48,16.36023546]
[1731899732342,20.7889,237.51,237.46,16.36023546]
[1731899736323,20.7889,237.51,237.5,16.36023546]
[1731899737040,20.7889,237.51,237.48,16.36023546]
[1731899737223,20.7889,237.51,237.46,16.36023546]
[1731899737554,20.7889,237.51,237.48,16.36023546]
[1731899738248,20.7889,237.51,237.5,16.36023546]
[1731899741727,20.7889,237.51,237.48,16.36023546]
[1731899741925,20.7889,237.51,237.5,16.36023546]
[1731899742662,20.7889,237.51,237.48,16.36023546]
[1731899743230,20.7889,237.51,237.5,16.36023546]
[1731899743939,20.7889,237.51,237.38,35.8074]
[1731899744145,20.7889,237.51,237.48,16.36023546]
[1731899744649,20.7889,237.51,237.38,35.8074]
[1731899744650,20.7889,237.51,237.46,16.36023546]
[1731899746862,0.1,237.45,237.23,0.1]
[1731899747164,0.09367462,237.4,237.31,16.36023546]
[1731899747343,25.27367462,237.4,237.31,16.36023546]
[1731899748345,4.2123,237.4,237.39,16.36023546]
[1731899749273,4.2123,237.4,237.37,16.36023546]
[1731899749447,4.2123,237.4,237.35,16.36023546]
[1731899750092,4.2123,237.4,237.37,16.36023546]
[1731899750266,4.2123,237.4,237.38,10.22075691]
[1731899751464,4.2123,237.4,237.38,14.43315691]
[1731899752072,10.5276,237.47,237.38,24.96475691]
[1731899752248,10.5276,237.47,237.46,10.22075691]
[1731899752651,10.5276,237.47,237.38,14.744]
[1731899752854,10.5276,237.47,237.43,10.22075691]
[1731899753566,10.5276,237.47,237.36,10.22075691]
[1731899753567,10.5276,237.47,237.45,10.22075691]
[1731899755448,10.5276,237.47,237.46,4.2112]
[1731899756853,20.789,237.51,237.46,14.43195691]
[1731899757062,16.5786,237.51,237.5,10.22075691]
[1731899758168,16.5786,237.51,237.5,14.43125691]
[1731899758374,16.5786,237.51,237.5,20.53646144]
[1731899759085,16.5786,237.51,237.5,16.32596144]
[1731899765376,16.5786,237.51,237.47,4.211]
[1731899765576,16.5786,237.51,237.41,10.5302]
[1731899765776,16.5786,237.51,237.46,16.32596144]
[1731899766080,20.7889,237.51,237.44,16.32596144]
[1731899766961,20.7889,237.51,237.46,16.32596144]
[1731899769881,160.2,237.5,237.46,16.32596144]
[1731899770775,160.2,237.5,237.48,16.32596144]
[1731899772264,160.2,237.5,237.48,32.65192288]
[1731899772478,20.7889,237.51,237.48,32.65192288]
[1731899772683,20.7889,237.51,237.5,16.32596144]
[1731899773194,20.7889,237.51,237.5,20.53646144]
[1731899773556,20.7889,237.51,237.5,16.32596144]
[1731899775694,20.7889,237.51,237.48,16.32596144]
[1731899776381,20.7889,237.51,237.46,16.32596144]
[1731899776885,20.7889,237.51,237.48,16.32596144]
[1731899777882,20.7889,237.51,237.44,16.32596144]
[1731899777883,160.2,237.5,237.44,16.32596144]
[1731899778864,160.2,237.5,237.46,16.32596144]
[1731899779373,160.2,237.5,237.44,16.32596144]
[1731899779689,4.2107,237.49,237.44,16.32596144]
[1731899780365,4.2107,237.49,237.45,10.21485718]
[1731899781664,4.2107,237.49,237.39,10.5308]
[1731899781865,160.2,237.48,237.41,10.21485718]
[1731899782672,160.2,237.48,237.43,10.21485718]
[1731899783185,4.211,237.47,237.43,10.21485718]
[1731899784265,164.411,237.47,237.43,10.21485718]
[1731899784976,4.211,237.47,237.43,10.21485718]
[1731899786582,4.211,237.47,237.45,10.21485718]
[1731899787890,16.5786,237.51,237.46,10.21485718]
[1731899788186,16.5786,237.51,237.5,10.21485718]
[1731899788890,16.5786,237.51,237.5,14.42535718]
[1731899790303,16.5786,237.51,237.5,10.21485718]
[1731899797002,10.5247,237.54,237.5,24.95095718]
[1731899797292,10.5247,237.54,237.53,10.21485718]
[1731899803301,10.5247,237.54,237.39,14.7435]
[1731899803479,20.73955718,237.54,237.46,10.21485718]
[1731899803679,10.5247,237.54,237.48,10.21485718]
[1731899803905,10.5247,237.54,237.5,10.21485718]
[1731899804578,10.5247,237.54,237.48,10.21485718]
[1731899804774,10.5247,237.54,237.48,14.42555718]
[1731899807798,10.5247,237.54,237.48,24.95275718]
[1731899808007,10.5247,237.54,237.5,10.21485718]
[1731899808778,10.5247,237.54,237.52,10.21485718]
[1731899811376,10.5247,237.54,237.53,4.2099]
[1731899820805,10.5247,237.54,237.49,10.5267]
[1731899821302,10.5247,237.54,237.41,21.0598]
[1731899821303,20.73955718,237.54,237.46,10.21485718]
[1731899821527,180.93955718,237.54,237.46,10.21485718]
[1731899821696,185.14935718,237.54,237.46,14.42595718]
[1731899822097,185.14935718,237.54,237.44,14.42635718]
[1731899822300,10.21485718,237.51,237.44,4.2115]
[1731899822522,10.21485718,237.51,237.42,10.21485718]
[1731899822825,10.21485718,237.47,237.4,10.5303]
[1731899823708,10.21485718,237.45,237.38,10.21485718]
[1731899823915,41.72265718,237.45,237.36,10.21485718]
[1731899824219,201.92265718,237.45,237.36,10.21485718]
[1731899825007,201.92265718,237.45,237.37,4.2128]
[1731899825621,10.21485718,237.43,237.35,10.5328]
[1731899825800,160.2,237.42,237.35,10.5328]
[1731899826121,170.41485718,237.41,237.32,14.42855718]
[1731899826624,160.2,237.4,237.32,14.42855718]
[1731899827199,164.4123,237.4,237.32,14.42855718]
[1731899827395,164.4123,237.4,237.32,10.21485718]
[1731899830022,160.2,237.39,237.34,10.21485718]
[1731899831443,160.2,237.39,237.25,14.7523]
[1731899831621,160.2,237.39,237.33,10.21485718]
[1731899832026,164.4125,237.39,237.33,10.21485718]
[1731899832541,10.21485718,237.37,237.29,10.21485718]
[1731899832920,23.776884,237.36,237.29,10.21485718]
[1731899833421,27.989884,237.36,237.29,10.21485718]
[1731899833620,27.989884,237.36,237.32,10.21485718]
[1731899833920,160.2,237.35,237.32,10.21485718]
[1731899836731,160.2,237.35,237.34,10.21485718]
[1731899836923,183.976884,237.35,237.34,10.21485718]
[1731899837342,160.2,237.35,237.34,10.21485718]
[1731899837544,4.213,237.36,237.34,10.21485718]
[1731899838526,160.2,237.43,237.35,14.42795718]
[1731899838725,42.0367,237.45,237.42,10.21485718]
[1731899839051,10.5289,237.45,237.44,10.21485718]
[1731899840348,10.5289,237.45,237.44,14.42635718]
[1731899840731,10.5289,237.45,237.43,10.5293]
[1731899841051,10.5289,237.45,237.44,10.21485718]
[1731899843652,34.305784,237.45,237.42,10.21485718]
[1731899843865,23.776884,237.44,237.42,10.21485718]
[1731899844155,10.5289,237.45,237.42,10.21485718]
[1731899844455,10.5289,237.45,237.44,10.21485718]
[1731899844847,23.776884,237.44,237.42,10.21485718]
[1731899846225,183.976884,237.44,237.42,10.21485718]
[1731899846439,27.988584,237.43,237.42,10.21485718]
[1731899846850,27.988584,237.43,237.35,4.2131]
[1731899846851,23.776884,237.42,237.4,10.21485718]
[1731899848551,23.776884,237.42,237.38,10.21485718]
[1731899848552,23.776884,237.4,237.38,10.21485718]
[1731899848850,160.2,237.39,237.36,10.21485718]
[1731899849061,23.776884,237.38,237.36,10.21485718]
[1731899849748,160.2,237.37,237.28,14.75]
[1731899849952,23.776884,237.35,237.31,10.21485718]
[1731899850253,160.2,237.36,237.33,10.21485718]
[1731899850444,4.2128,237.38,237.35,10.21485718]
[1731899852741,23.776884,237.37,237.35,10.21485718]
[1731899853451,4.2129,237.37,237.35,10.21485718]
[1731899857657,4.2129,237.37,237.36,10.21485718]
[1731899858161,10.5289,237.45,237.36,24.96035718]
[1731899858353,10.5289,237.45,237.43,10.21485718]
[1731899859367,10.5289,237.45,237.43,14.42645718]
[1731899860263,10.5289,237.45,237.43,20.74425718]
[1731899860447,21.0558,237.47,237.44,10.21485718]
[1731899860760,21.0558,237.47,237.46,20.42971436]
[1731899861762,21.0558,237.47,237.46,14.42605718]
[1731899862348,21.0558,237.47,237.46,24.64091436]
[1731899862877,164.4089,237.59,237.46,24.64091436]
[1731899863175,164.4089,237.59,237.53,10.21485718]
[1731899863176,4.2089,237.59,237.53,10.21485718]
[1731899863344,164.4089,237.59,237.53,10.21485718]
[1731899863856,4.2089,237.59,237.53,10.21485718]
[1731899865565,4.2089,237.59,237.53,24.94915718]
[1731899865769,4.2089,237.59,237.58,10.21485718]
[1731899866864,4.2089,237.59,237.54,10.21485718]
[1731899867049,160.2,237.58,237.52,10.21485718]
[1731899867651,160.2,237.58,237.54,10.21485718]
[1731899870444,174.62405718,237.58,237.48,4.2108]
[1731899870646,10.21485718,237.54,237.45,20.74315718]
[1731899870853,160.2,237.53,237.45,10.21485718]
[1731899871057,160.2,237.53,237.49,10.21485718]
[1731899872170,160.2,237.53,237.49,4.2105]
[1731899872383,4.2095,237.56,237.51,10.21485718]
[1731899872670,4.2095,237.56,237.54,10.21485718]
[1731899875370,4.2095,237.56,237.54,14.42455718]
[1731899875960,4.2095,237.56,237.54,24.94905718]
[1731899876658,31.5653,237.61,237.54,24.94905718]
[1731899876858,31.5653,237.61,237.6,10.21485718]
[1731899877576,31.5653,237.61,237.6,14.42355718]
[1731899879254,31.5653,237.61,237.6,24.63841436]
[1731899882457,31.5653,237.61,237.6,37.02411436]
[1731899883469,31.5653,237.61,237.6,14.42355718]
[1731899884153,31.5653,237.61,237.6,24.63841436]
[1731899887653,31.5653,237.61,237.6,10.21485718]
[1731899889369,31.5653,237.61,237.6,14.42355718]
[1731899892492,31.5653,237.61,237.57,10.21485718]
[1731899894576,31.5653,237.61,237.57,14.42405718]
[1731899894782,31.5653,237.61,237.59,10.21485718]
[1731899894987,31.5653,237.61,237.57,14.42405718]
[1731899895883,31.5653,237.61,237.57,24.94725718]
[1731899896675,31.5653,237.61,237.57,20.73805718]
[1731899896898,160.2,237.6,237.54,4.2096]
[1731899897195,160.2,237.59,237.54,4.2096]
[1731899898298,160.2,237.58,237.53,20.73965718]
[1731899898893,160.2,237.58,237.53,24.94955718]
[1731899899104,4.2088,237.6,237.57,10.21485718]
[1731899899279,4.2088,237.6,237.55,10.21485718]
[1731899900401,4.2088,237.6,237.55,24.94855718]
[1731899903097,31.5653,237.61,237.58,10.21485718]
[1731899903292,31.5653,237.61,237.6,10.21485718]
[1731899904278,31.5653,237.61,237.6,14.42355718]
[1731899910689,31.5653,237.61,237.6,4.2087]
[1731899911506,31.5653,237.61,237.6,10.21485718]
[1731899912008,31.5653,237.61,237.58,10.21485718]
[1731899912586,31.5653,237.61,237.59,4.2089]
[1731899916588,191.7653,237.61,237.54,20.73925718]
[1731899916921,191.7653,237.61,237.54,10.5244]
[1731899916922,10.21485718,237.6,237.54,10.5244]
[1731899917295,10.21485718,237.6,237.54,14.7342]
[1731899917494,191.7653,237.61,237.54,24.94905718]
[1731899918005,10.21485718,237.6,237.54,14.7342]
[1731899919616,195.9739,237.61,237.54,14.7342]
[1731899919825,195.9739,237.61,237.54,24.94905718]
[1731899920109,35.7739,237.61,237.58,10.21485718]
[1731899920705,35.7739,237.61,237.6,10.21485718]
[1731899921514,31.5653,237.61,237.6,10.21485718]
[1731899921891,31.5653,237.61,237.6,14.42355718]
[1731899924403,31.5653,237.61,237.6,4.2087]
[1731899925525,31.5653,237.61,237.6,10.21485718]
[1731899926701,31.5653,237.61,237.6,44.63841436]
[1731899927105,31.5653,237.61,237.6,34.42355718]
[1731899927502,31.5653,237.61,237.6,44.73841436]
[1731899927821,31.5653,237.61,237.6,44.63841436]
[1731899929491,31.5653,237.61,237.6,34.42355718]
[1731899930002,31.5653,237.61,237.6,44.63841436]
[1731899935218,31.5653,237.61,237.6,44.95757898]
[1731899935417,0.047791,237.62,237.61,30.5340218]
[1731899937223,0.047791,237.62,237.61,30.21485718]
[1731899941023,0.047791,237.62,237.6,24.94535718]
[1731899941726,0.047791,237.62,237.6,14.7305]
[1731899942727,0.047791,237.62,237.6,24.94535718]
[1731899944332,0.047791,237.62,237.6,35.16021436]
[1731899944504,0.047791,237.62,237.61,20.0]
[1731899946530,0.047791,237.62,237.6,24.94535718]
[1731899950412,0.047791,237.62,237.61,20.0]
[1731899951834,0.047791,237.62,237.6,24.94535718]
[1731899953910,0.047791,237.62,237.6,10.5218]
[1731899955813,0.047791,237.62,237.6,14.7305]
[1731899959344,0.047791,237.62,237.6,10.21485718]
[1731899960946,0.047791,237.62,237.61,4.2085]
[1731899965856,21.0345,237.71,237.65,0.1]
[1731899966146,21.0345,237.71,237.7,10.21485718]
[1731899967053,21.0345,237.71,237.7,34.42175718]
[1731899967241,21.0345,237.71,237.7,14.42175718]
[1731899968166,21.0345,237.71,237.7,10.21485718]
[1731899970455,21.0345,237.71,237.68,10.21485718]
[1731899970760,21.0345,237.71,237.7,10.21485718]
[1731899971441,21.0345,237.71,237.7,14.42175718]
[1731899972964,21.0345,237.71,237.7,4.2069]
[1731899973147,21.0345,237.71,237.69,10.5178]
[1731899973548,21.0345,237.71,237.69,14.7249]
[1731899975048,21.0345,237.71,237.66,10.21485718]
[1731899976161,21.0345,237.71,237.67,14.7262]
[1731899976843,21.0345,237.71,237.67,10.5187]
[1731899977046,21.0345,237.71,237.66,4.2076]
[1731899977275,181.2345,237.71,237.66,4.2076]
[1731899978264,181.2345,237.71,237.64,14.7281]
[1731899980073,181.2345,237.71,237.67,10.21485718]
[1731899981167,181.2345,237.71,237.68,14.7256]
[1731899982676,181.2345,237.71,237.65,10.21485718]
[1731899983356,21.0345,237.71,237.65,10.21485718]
[1731899983976,21.0345,237.71,237.66,14.7268]
[1731899984968,21.0345,237.71,237.68,4.2073]
[1731899985351,21.0345,237.71,237.68,14.7256]
[1731899988070,21.0345,237.71,237.69,10.21485718]
[1731899989885,21.0345,237.71,237.7,4.2069]
[1731899992281,21.0345,237.71,237.7,6.52298467]
[1731899993085,21.0345,237.71,237.68,10.5183]
[1731899994168,21.0345,237.71,237.68,17.04128467]
[1731899994666,21.0345,237.71,237.68,21.24858467]
[1731899995295,21.0345,237.71,237.7,6.52298467]
[1731899995479,21.0345,237.71,237.7,26.74847467]
[1731899995791,21.0345,237.71,237.7,34.66229316]
[1731899996367,21.0345,237.71,237.7,38.86919316]
[1731899996564,42.0554,237.79,237.74,0.1]
[1731899996893,42.0554,237.79,237.78,6.52298467]
[1731899997691,42.0554,237.79,237.78,14.37668952]
[1731900000069,42.0554,237.79,237.78,18.54230316]
[1731900000680,42.0554,237.79,237.78,10.72848467]
[1731900000892,42.0554,237.79,237.78,4.2055]
[1731900001095,42.0554,237.79,237.78,10.72848467]
[1731900004382,42.0554,237.79,237.78,31.17313929]
[1731900004581,21.0231,237.84,237.8,0.1]
[1731900004774,21.0231,237.84,237.83,6.52298467]
[1731900004974,21.0231,237.84,237.83,10.17118952]
[1731900005478,21.0231,237.84,237.83,14.33680316]
[1731900005997,160.2,237.83,237.78,10.5139]
[1731900006197,21.0231,237.84,237.79,6.52298467]
[1731900006501,21.0231,237.84,237.78,10.5139]
[1731900006502,21.0231,237.84,237.81,6.52298467]
[1731900007010,21.0231,237.84,237.78,10.5139]
[1731900007198,30.29986867,237.82,237.78,10.5139]
[1731900007705,160.2,237.83,237.78,14.7194]
[1731900007882,166.72298467,237.83,237.78,14.7194]
[1731900008083,25.2276,237.84,237.79,6.52298467]
[1731900009086,25.2276,237.84,237.8,14.7182]
[1731900009683,21.0231,237.84,237.81,6.52298467]
[1731900010188,21.0231,237.84,237.82,20.0]
[1731900010389,21.0231,237.84,237.83,6.52298467]
[1731900010808,21.0231,237.84,237.83,10.72758467]
[1731900013709,21.0231,237.84,237.83,4.2046]
[1731900016093,21.0231,237.84,237.83,10.72758467]
[1731900017506,21.0231,237.84,237.83,4.2046]
[1731900017794,21.0231,237.84,237.83,10.72758467]
[1731900018501,21.0231,237.84,237.83,4.2046]
[1731900019398,21.0231,237.84,237.83,4.54925462]
[1731900019804,21.0231,237.84,237.83,31.07223929]
[1731900019997,10.5076,237.93,237.9,0.1]
[1731900020196,10.5076,237.93,237.87,0.1]
[1731900020519,10.5076,237.93,237.89,6.52298467]
[1731900020691,10.5076,237.93,237.85,20.1]
[1731900020692,10.5076,237.93,237.85,6.52298467]